bitfinex/quotes_BTCUSD_20240815
["timestamp","ask_amount","ask_price","bid_price","bid_amount"]
[1723685294887,1.42972386,58914.0,58909.0,0.0656]
[1723685295096,1.93217215,58914.0,58909.0,0.0656]
[1723685295300,1.93217215,58914.0,58907.0,0.00020382]
[1723685295506,1.93217215,58914.0,58906.0,0.00020382]
[1723685295507,3.04600086,58914.0,58906.0,0.00020382]
[1723685295720,3.04600086,58914.0,58904.0,0.14510382]
[1723685295932,3.04600086,58914.0,58907.0,0.00020382]
[1723685296139,3.05200086,58914.0,58908.0,0.00020382]
[1723685296352,2.54355257,58914.0,58911.0,0.00020382]
[1723685296579,2.54355257,58914.0,58913.0,0.08826782]
[1723685296794,2.59012567,58914.0,58913.0,0.088064]
[1723685297048,2.51433828,58914.0,58913.0,0.08826782]
[1723685297256,2.5797814,58914.0,58913.0,0.08826782]
[1723685297464,2.5657814,58914.0,58913.0,0.088064]
[1723685297671,2.5657814,58914.0,58913.0,0.08826782]
[1723685297886,2.5797814,58914.0,58913.0,0.08826782]
[1723685298948,2.5657814,58914.0,58913.0,0.088064]
[1723685299155,2.57957736,58914.0,58913.0,0.00926782]
[1723685299366,2.50378979,58914.0,58913.0,0.00926782]
[1723685300460,2.50378979,58914.0,58913.0,0.009064]
[1723685300669,2.50378979,58914.0,58913.0,0.00926782]
[1723685301055,2.55431616,58914.0,58913.0,0.009064]
[1723685301875,2.50378979,58914.0,58913.0,0.009064]
[1723685302095,2.50378979,58914.0,58913.0,0.00926782]
[1723685302310,2.50378979,58914.0,58913.0,0.009064]
[1723685303888,2.82973237,58914.0,58913.0,0.009064]
[1723685304095,3.16920937,58914.0,58913.0,0.009064]
[1723685304920,3.26920937,58914.0,58913.0,0.009064]
[1723685306567,3.29931093,58914.0,58913.0,0.009064]
[1723685306769,3.36491093,58914.0,58913.0,0.009064]
[1723685306939,1.18819,58913.0,58912.0,0.0067561]
[1723685307140,2.14740279,58913.0,58912.0,0.0067561]
[1723685307381,2.14740279,58913.0,58900.0,0.0115786]
[1723685307382,1.188432,58901.0,58900.0,0.0115786]
[1723685307582,2.804784,58901.0,58900.0,0.0115786]
[1723685307995,2.81565993,58901.0,58900.0,0.0115786]
[1723685308469,2.47610793,58901.0,58900.0,0.0883786]
[1723685308927,2.63907922,58901.0,58900.0,0.0115786]
[1723685309872,2.65307922,58901.0,58900.0,0.0115786]
[1723685310300,3.15560251,58901.0,58900.0,0.0115786]
[1723685310720,2.81605051,58901.0,58900.0,0.0115786]
[1723685310926,2.82905051,58901.0,58900.0,0.0115786]
[1723685311129,2.83928771,58901.0,58900.0,0.0115786]
[1723685311335,2.82528771,58901.0,58900.0,0.0115786]
[1723685311565,2.83928771,58901.0,58900.0,0.0115786]
[1723685312343,3.17883971,58901.0,58900.0,0.0115786]
[1723685312559,3.16583971,58901.0,58900.0,0.0115786]
[1723685312783,3.26583971,58901.0,58900.0,0.0115786]
[1723685312977,3.27983971,58901.0,58900.0,0.0115786]
[1723685313946,3.27983971,58901.0,58900.0,0.012485]
[1723685314783,2.76331642,58901.0,58900.0,0.012485]
[1723685315189,2.77731642,58901.0,58900.0,0.012485]
[1723685315776,3.10286842,58901.0,58900.0,0.012485]
[1723685315979,2.76331642,58901.0,58900.0,0.012485]
[1723685316205,2.77731642,58901.0,58900.0,0.012485]
[1723685316355,3.11686842,58901.0,58900.0,0.012485]
[1723685316572,2.85256769,58901.0,58900.0,0.012485]
[1723685317741,3.19211969,58901.0,58900.0,0.012485]
[1723685317952,3.19506849,58901.0,58900.0,0.012485]
[1723685318167,2.85551649,58901.0,58900.0,0.012485]
[1723685318783,3.19506849,58901.0,58900.0,0.012485]
[1723685318997,2.85551649,58901.0,58900.0,0.012485]
[1723685319211,2.78026522,58901.0,58900.0,0.012485]
[1723685319425,2.76626522,58901.0,58900.0,0.012485]
[1723685319624,2.78026522,58901.0,58900.0,0.012485]
[1723685320232,2.76626522,58901.0,58900.0,0.012485]
[1723685320659,2.78026522,58901.0,58900.0,0.012485]
[1723685320866,2.61729393,58901.0,58900.0,0.155085]
[1723685323262,2.78026522,58901.0,58900.0,0.155085]
[1723685323855,2.61729393,58901.0,58900.0,0.012485]
[1723685324657,2.84126522,58901.0,58900.0,0.012485]
[1723685324877,3.18081722,58901.0,58900.0,0.012485]
[1723685325110,3.44079082,58901.0,58900.0,0.012485]
[1723685325309,1.528218,58892.0,58891.0,0.009064]
[1723685325461,1.82928929,58892.0,58891.0,0.009064]
[1723685325661,1.84007281,58892.0,58891.0,0.009064]
[1723685326103,3.11687281,58892.0,58891.0,0.009064]
[1723685326853,3.12687281,58892.0,58891.0,0.009064]
[1723685327054,3.2288441,58892.0,58891.0,0.009064]
[1723685327260,3.2188441,58892.0,58891.0,0.009064]
[1723685327681,3.2328441,58892.0,58891.0,0.009064]
[1723685328105,3.2468441,58892.0,58891.0,0.009064]
[1723685329156,3.17972636,58892.0,58891.0,0.009064]
[1723685332002,3.01675507,58892.0,58891.0,0.15266782]
[1723685332266,2.51417978,58892.0,58891.0,0.00926782]
[1723685332475,2.51417978,58892.0,58891.0,0.009064]
[1723685333500,2.51417978,58892.0,58891.0,0.00926782]
[1723685333703,2.51417978,58892.0,58891.0,0.009064]
[1723685333912,2.67715107,58892.0,58891.0,0.00926782]
[1723685334119,2.51417978,58892.0,58891.0,0.15146782]
[1723685335154,0.88779352,58892.0,58891.0,0.15146782]
[1723685336019,0.54818952,58892.0,58891.0,0.15146782]
[1723685336908,0.20858552,58892.0,58891.0,0.15146782]
[1723685337804,0.54818952,58892.0,58891.0,0.15146782]
[1723685338882,0.52018952,58892.0,58891.0,0.15146782]
[1723685339389,0.53018952,58892.0,58891.0,0.15146782]
[1723685341002,1.20939752,58892.0,58891.0,0.15146782]
[1723685341219,1.20939752,58892.0,58891.0,0.00926782]
[1723685343302,1.25991485,58892.0,58891.0,0.00926782]
[1723685344590,1.28517352,58892.0,58891.0,0.00926782]
[1723685345340,1.29526746,58892.0,58891.0,0.00926782]
[1723685345555,2.65256876,58892.0,58891.0,0.00926782]
[1723685345766,2.58166125,58892.0,58891.0,0.00926782]
[1723685345964,2.84079872,58892.0,58891.0,0.00926782]
[1723685346362,2.65267683,58892.0,58891.0,0.00926782]
[1723685346487,2.55153409,58892.0,58891.0,0.00926782]
[1723685347299,2.55153409,58892.0,58891.0,0.009064]
[1723685347756,3.03223809,58892.0,58891.0,0.009064]
[1723685347903,3.34773887,58892.0,58891.0,0.009064]
[1723685348114,3.54017759,58892.0,58891.0,0.009064]
[1723685348747,3.53417759,58892.0,58891.0,0.009064]
[1723685349153,3.53417759,58892.0,58891.0,0.14916782]
[1723685349154,1.26264015,58892.0,58891.0,0.14916782]
[1723685349360,1.26264015,58892.0,58891.0,0.009064]
[1723685349361,1.26964015,58892.0,58891.0,0.009064]
[1723685349559,1.29975529,58892.0,58891.0,0.009064]
[1723685349728,1.27176574,58892.0,58891.0,0.009064]
[1723685349937,1.45375962,58892.0,58891.0,0.009064]
[1723685350130,1.31088098,58892.0,58891.0,0.009064]
[1723685350453,1.46538694,58892.0,58891.0,0.009064]
[1723685350831,1.4352717,58892.0,58891.0,0.00926782]
[1723685351237,3.28076574,58892.0,58891.0,0.08956782]
[1723685351434,2.93103615,58892.0,58891.0,0.15326782]
[1723685352259,2.08202615,58892.0,58891.0,0.15326782]
[1723685352651,2.20858704,58892.0,58891.0,0.15326782]
[1723685353449,2.08202615,58892.0,58891.0,0.15326782]
[1723685353621,2.18327596,58892.0,58891.0,0.15326782]
[1723685353826,2.25182815,58892.0,58891.0,0.15326782]
[1723685354028,2.08202615,58892.0,58891.0,0.15326782]
[1723685354480,2.25182815,58892.0,58891.0,0.15326782]
[1723685354795,2.59143215,58892.0,58891.0,0.15326782]
[1723685355191,2.25182815,58892.0,58891.0,0.15326782]
[1723685355619,2.59143215,58892.0,58891.0,0.15326782]
[1723685356287,2.25182815,58892.0,58891.0,0.15326782]
[1723685356723,2.18329928,58892.0,58891.0,1.16526411]
[1723685356926,2.02678352,58892.0,58891.0,1.50487411]
[1723685357338,2.02678352,58892.0,58891.0,1.16526411]
[1723685357726,2.01778352,58892.0,58891.0,1.16526411]
[1723685359102,2.01078352,58892.0,58891.0,1.16526411]
[1723685359521,2.01078352,58892.0,58891.0,1.16626411]
[1723685360159,2.01078352,58892.0,58891.0,1.50587411]
[1723685361438,2.01178352,58892.0,58891.0,1.50787411]
[1723685362152,2.01178352,58892.0,58891.0,1.53087411]
[1723685362351,2.01178352,58892.0,58891.0,1.52987411]
[1723685362630,2.01278352,58892.0,58891.0,1.53187411]
[1723685370537,2.01278352,58892.0,58891.0,1.17528311]
[1723685376220,2.002,58892.0,58891.0,1.27528311]
[1723685376434,2.002,58892.0,58891.0,1.51301011]
[1723685376647,2.01287502,58892.0,58891.0,1.51301011]
[1723685376850,2.002,58892.0,58891.0,1.51301011]
[1723685377055,2.01287502,58892.0,58891.0,1.51301011]
[1723685377480,2.01287502,58892.0,58891.0,2.67301011]
[1723685377681,2.01287502,58892.0,58891.0,2.21301011]
[1723685378105,2.01287502,58892.0,58891.0,2.29871011]
[1723685378722,2.002,58892.0,58891.0,2.29871011]
[1723685379163,2.01288049,58892.0,58891.0,2.29871011]
[1723685379403,2.01288049,58892.0,58891.0,2.29671011]
[1723685379796,2.002,58892.0,58891.0,2.29671011]
[1723685379946,2.002,58892.0,58891.0,2.42241011]
[1723685380157,2.01288049,58892.0,58891.0,2.42241011]
[1723685380582,2.01288049,58892.0,58891.0,1.72241011]
[1723685382219,2.01288049,58892.0,58891.0,2.48241011]
[1723685382572,2.01288049,58892.0,58891.0,2.27301011]
[1723685383682,2.01288049,58892.0,58891.0,2.97301011]
[1723685384092,2.01288049,58892.0,58891.0,2.97501011]
[1723685386077,2.01288049,58892.0,58891.0,2.97301011]
[1723685386488,2.002,58892.0,58891.0,2.97301011]
[1723685386911,2.01293,58892.0,58891.0,2.97301011]
[1723685387114,2.01293,58892.0,58891.0,3.01101011]
[1723685389191,2.01293,58892.0,58891.0,3.18722046]
[1723685389388,2.01293,58892.0,58891.0,3.19722046]
[1723685390202,2.01293,58892.0,58891.0,3.19722045]
[1723685393795,2.01293,58892.0,58891.0,3.26520245]
[1723685396591,2.01293,58892.0,58891.0,3.25320245]
[1723685397602,2.01293,58892.0,58891.0,3.07699211]
[1723685397866,2.01293,58892.0,58891.0,3.2531956]
[1723685398095,2.01293,58892.0,58891.0,3.25520091]
[1723685398328,2.01293,58892.0,58891.0,3.25320091]
[1723685398550,2.01293,58892.0,58891.0,3.46260091]
[1723685400286,2.01293,58892.0,58891.0,3.46460091]
[1723685400849,2.15793,58892.0,58891.0,1.74022111]
[1723685401114,2.15793,58892.0,58891.0,1.03110211]
[1723685401340,2.15793,58892.0,58891.0,1.50655611]
[1723685401591,2.01293,58892.0,58891.0,1.95368311]
[1723685401835,2.01293,58892.0,58891.0,1.25368311]
[1723685402100,2.01293,58892.0,58891.0,1.12808311]
[1723685402333,2.01293,58892.0,58891.0,1.22808311]
[1723685402561,2.01293,58892.0,58891.0,1.25108311]
[1723685403042,2.01293,58892.0,58891.0,1.2381315]
[1723685403284,2.01293,58892.0,58891.0,1.9381315]
[1723685403786,2.01293,58892.0,58891.0,1.45262911]
[1723685404057,2.01293,58892.0,58891.0,1.35262911]
[1723685404058,2.09013,58892.0,58891.0,1.35262911]
[1723685404313,2.15053,58892.0,58891.0,0.65262911]
[1723685404813,2.15053,58892.0,58891.0,0.29603911]
[1723685405072,2.269391,58892.0,58891.0,0.04926782]
[1723685405353,2.507114,58892.0,58891.0,0.04926782]
[1723685405598,2.79542953,58892.0,58891.0,0.04926782]
[1723685405837,3.19612382,58892.0,58891.0,0.04926782]
[1723685406104,3.14553129,58892.0,58891.0,0.047064]
[1723685406364,3.32855279,58892.0,58891.0,0.047064]
[1723685406630,3.1655815,58892.0,58891.0,0.05026782]
[1723685406851,3.1655815,58892.0,58891.0,0.050064]
[1723685407133,3.1645815,58892.0,58891.0,0.04526782]
[1723685407393,3.0633221,58892.0,58891.0,0.04626782]
[1723685407648,3.0633221,58892.0,58891.0,0.04726782]
[1723685407913,3.0563221,58892.0,58891.0,0.04626782]
[1723685408209,3.0563221,58892.0,58891.0,0.04526782]
[1723685408650,3.04104929,58892.0,58891.0,0.04626782]
[1723685408883,3.03104929,58892.0,58891.0,0.04526782]
[1723685409388,3.04304929,58892.0,58891.0,0.04626782]
[1723685409628,2.99256,58892.0,58891.0,0.04626782]
[1723685409886,2.98056,58892.0,58891.0,0.04526782]
[1723685410131,2.99356,58892.0,58891.0,0.04626782]
[1723685410394,3.00656,58892.0,58891.0,0.04726782]
[1723685410691,2.755837,58892.0,58891.0,0.04626782]
[1723685410923,2.518114,58892.0,58891.0,0.04626782]
[1723685411209,2.767837,58892.0,58891.0,0.04726782]
[1723685411707,2.530114,58892.0,58891.0,0.04726782]
[1723685412680,2.767837,58892.0,58891.0,0.04726782]
[1723685413157,2.767837,58892.0,58891.0,0.047064]
[1723685413158,3.16853129,58892.0,58891.0,0.047064]
[1723685413356,2.93080829,58892.0,58891.0,0.047064]
[1723685413669,2.767837,58892.0,58891.0,0.04726782]
[1723685416385,2.530114,58892.0,58891.0,0.04726782]
[1723685416607,2.530114,58892.0,58891.0,0.16613082]
[1723685416608,2.03593,58892.0,58891.0,0.16613082]
[1723685417077,2.03593,58892.0,58891.0,0.04726782]
[1723685417534,2.03593,58892.0,58891.0,0.40385782]
[1723685418434,2.03593,58892.0,58891.0,1.11988311]
[1723685418855,2.03593,58892.0,58891.0,1.17988311]
[1723685419070,2.025,58892.0,58891.0,0.94215611]
[1723685419520,2.01872164,58892.0,58891.0,1.17888311]
[1723685419936,2.00672164,58892.0,58891.0,1.17788311]
[1723685420169,2.01172164,58892.0,58891.0,1.17788311]
[1723685420377,2.01172164,58892.0,58891.0,1.17888311]
[1723685420378,2.01772164,58892.0,58891.0,1.17888311]
[1723685420586,2.01272164,58892.0,58891.0,1.17888311]
[1723685420761,2.01372164,58892.0,58891.0,1.18888311]
[1723685421610,2.00772164,58892.0,58891.0,1.18788311]
[1723685421806,2.00872164,58892.0,58891.0,1.19488311]
[1723685424181,2.0085173,58892.0,58891.0,1.19488311]
[1723685427983,2.0085173,58892.0,58891.0,1.27868311]
[1723685428833,2.0085173,58892.0,58891.0,1.20108311]
[1723685429041,2.0085173,58892.0,58891.0,1.14108311]
[1723685429578,2.0085173,58892.0,58891.0,0.81955611]
[1723685429880,2.0085173,58892.0,58891.0,0.58182911]
[1723685430331,2.0085173,58892.0,58891.0,0.22523911]
[1723685430566,2.0085173,58892.0,58891.0,0.06226782]
[1723685430567,2.5105013,58892.0,58891.0,0.06226782]
[1723685430811,2.9859473,58892.0,58891.0,0.06226782]
[1723685431051,2.7482243,58892.0,58891.0,0.06226782]
[1723685431319,2.1539173,58892.0,58891.0,0.06226782]
[1723685431544,2.2717783,58892.0,58891.0,0.05526782]
[1723685431786,2.5095013,58892.0,58891.0,0.05526782]
[1723685432019,2.5195013,58892.0,58891.0,0.05626782]
[1723685432256,2.2817783,58892.0,58891.0,0.05626782]
[1723685432453,2.2717783,58892.0,58891.0,0.05526782]
[1723685432653,2.5095013,58892.0,58891.0,0.05526782]
[1723685432863,2.5185013,58892.0,58891.0,0.04626782]
[1723685433300,3.0019473,58892.0,58891.0,0.047064]
[1723685433500,3.0019473,58892.0,58891.0,0.04626782]
[1723685433501,3.044433,58892.0,58891.0,0.04626782]
[1723685433704,2.56895642,58892.0,58891.0,0.04626782]
[1723685433906,2.5265013,58892.0,58891.0,0.04726782]
[1723685434281,2.5265013,58892.0,58891.0,0.04626782]
[1723685434282,2.5185013,58892.0,58891.0,0.04626782]
[1723685434656,2.5325013,58892.0,58891.0,0.04726782]
[1723685434870,2.5225013,58892.0,58891.0,0.04626782]
[1723685435882,2.5365013,58892.0,58891.0,0.04626782]
[1723685436086,2.5225013,58892.0,58891.0,0.04526782]
[1723685436729,2.7742243,58892.0,58891.0,0.04526782]
[1723685437061,2.1172173,58892.0,58891.0,0.16413082]
[1723685437220,2.0345173,58892.0,58891.0,0.16413082]
[1723685438189,2.0205173,58892.0,58891.0,0.94215611]
[1723685438397,2.0205173,58892.0,58891.0,1.20288311]
[1723685438601,2.0235173,58892.0,58891.0,1.20288311]
[1723685439270,2.0065173,58892.0,58891.0,1.21300272]
[1723685439482,2.0065173,58892.0,58891.0,1.55272972]
[1723685439691,2.0095173,58892.0,58891.0,1.55272972]
[1723685439898,2.0075173,58892.0,58891.0,1.55272972]
[1723685440110,2.0075173,58892.0,58891.0,2.25272972]
[1723685440533,2.0085173,58892.0,58891.0,2.25672972]
[1723685441144,2.0075173,58892.0,58891.0,2.25672972]
[1723685441347,2.0065173,58892.0,58891.0,2.25272972]
[1723685441551,2.0075173,58892.0,58891.0,2.25472972]
[1723685443398,2.0083413,58892.0,58891.0,2.25472972]
[1723685443599,2.0083413,58892.0,58891.0,3.36819372]
[1723685443600,0.85433737,58892.0,58891.0,3.36819372]
[1723685443813,0.61575684,58892.0,58891.0,3.54437478]
[1723685444027,0.5896052,58892.0,58891.0,3.62049306]
[1723685444247,0.31396391,58892.0,58891.0,3.90513985]
[1723685444472,0.000825,58912.0,58911.0,1.49561082]
[1723685444682,0.064024,58930.0,58928.0,0.35657082]
[1723685444888,0.00727811,58929.0,58928.0,0.99469811]
[1723685445312,0.000824,58929.0,58928.0,0.99469811]
[1723685445521,0.000824,58929.0,58928.0,1.25727611]
[1723685445733,0.000824,58929.0,58928.0,1.11769811]
[1723685446560,0.000824,58929.0,58928.0,1.12069811]
[1723685446772,0.000824,58929.0,58928.0,1.11769811]
[1723685447178,0.000824,58929.0,58928.0,1.19669811]
[1723685447386,0.000824,58929.0,58928.0,1.20868069]
[1723685447588,0.000824,58929.0,58928.0,1.20668069]
[1723685447795,0.000824,58929.0,58928.0,1.21868069]
[1723685448209,0.000824,58929.0,58928.0,1.21768069]
[1723685448420,0.000824,58929.0,58928.0,1.91968069]
[1723685448623,0.000824,58929.0,58928.0,1.91868069]
[1723685448856,0.001824,58929.0,58928.0,1.93268069]
[1723685449066,0.001824,58929.0,58928.0,1.92268069]
[1723685449481,0.002824,58929.0,58928.0,1.93468069]
[1723685449702,0.002824,58929.0,58928.0,1.92268069]
[1723685449918,0.001824,58929.0,58928.0,1.92268069]
[1723685450131,0.001824,58929.0,58928.0,1.93668069]
[1723685450132,0.002824,58929.0,58928.0,1.93668069]
[1723685450349,0.002824,58929.0,58928.0,2.18425869]
[1723685450561,0.002824,58929.0,58928.0,2.17425869]
[1723685450775,0.002824,58929.0,58928.0,2.09525869]
[1723685450990,0.002824,58929.0,58928.0,1.37054211]
[1723685451235,0.002824,58929.0,58928.0,1.00996411]
[1723685451439,0.080024,58929.0,58928.0,1.00996411]
[1723685451665,0.080024,58929.0,58928.0,1.24754211]
[1723685451898,0.001824,58929.0,58928.0,1.47112011]
[1723685452314,0.001824,58929.0,58928.0,0.76312011]
[1723685452582,0.002824,58929.0,58928.0,0.29596411]
[1723685452736,0.080924,58929.0,58928.0,0.17117511]
[1723685452965,0.080924,58929.0,58928.0,0.51954211]
[1723685452966,0.079924,58929.0,58928.0,0.51954211]
[1723685453170,0.081924,58929.0,58928.0,0.53354211]
[1723685453621,0.081924,58929.0,58928.0,0.29596411]
[1723685455127,0.081924,58929.0,58928.0,0.53333829]
[1723685455329,0.081924,58929.0,58928.0,0.53354211]
[1723685455526,0.081924,58929.0,58928.0,0.29596411]
[1723685455988,0.002824,58929.0,58928.0,0.53354211]
[1723685456205,0.002824,58929.0,58928.0,0.77112011]
[1723685456424,0.002824,58929.0,58928.0,0.53354211]
[1723685457033,0.002824,58929.0,58928.0,0.77112011]
[1723685457460,0.001824,58929.0,58928.0,0.76512011]
[1723685457888,0.002824,58929.0,58928.0,0.77212011]
[1723685458322,0.001824,58929.0,58928.0,0.76512011]
[1723685458526,0.001824,58929.0,58928.0,0.52754211]
[1723685458703,0.002824,58929.0,58928.0,0.29596411]
[1723685459144,0.001824,58929.0,58928.0,0.28996411]
[1723685459351,0.002824,58929.0,58928.0,0.29696411]
[1723685459570,0.001824,58929.0,58928.0,0.28896411]
[1723685459764,0.002824,58929.0,58928.0,0.29796411]
[1723685459971,0.002824,58929.0,58928.0,0.53554211]
[1723685460178,0.001824,58929.0,58928.0,0.28896411]
[1723685460377,0.001824,58929.0,58928.0,0.17017511]
[1723685460583,0.01269808,58929.0,58928.0,0.28996411]
[1723685460801,0.01069808,58929.0,58928.0,0.51954211]
[1723685461007,0.001824,58929.0,58928.0,0.76312011]
[1723685461218,0.001824,58929.0,58928.0,0.77212011]
[1723685461219,0.502824,58929.0,58928.0,0.77212011]
[1723685461473,0.501824,58929.0,58928.0,0.76612011]
[1723685461652,0.51170047,58929.0,58928.0,0.76612011]
[1723685461873,0.501824,58929.0,58928.0,0.76612011]
[1723685462278,0.501824,58929.0,58928.0,0.77312011]
[1723685462480,0.502824,58929.0,58928.0,0.77312011]
[1723685462690,0.502824,58929.0,58928.0,0.53554211]
[1723685463104,0.51270626,58929.0,58928.0,0.29796411]
[1723685463535,0.51270626,58929.0,58928.0,0.53554211]
[1723685463743,0.51270626,58929.0,58928.0,0.77312011]
[1723685463971,0.51270626,58929.0,58928.0,1.31069811]
[1723685464190,0.51270626,58929.0,58928.0,1.48779811]
[1723685464404,0.51270626,58929.0,58928.0,1.74837611]
[1723685464405,0.502824,58929.0,58928.0,1.74837611]
[1723685464820,0.502824,58929.0,58928.0,1.51079811]
[1723685465034,0.502824,58929.0,58928.0,2.21079811]
[1723685465469,0.502824,58929.0,58928.0,1.51079811]
[1723685466113,0.502824,58929.0,58928.0,1.51279811]
[1723685466558,0.502824,58929.0,58928.0,2.58037611]
[1723685466783,0.502824,58929.0,58928.0,1.83368611]
[1723685466997,0.502824,58929.0,58928.0,2.67368611]
[1723685467619,0.500824,58929.0,58928.0,2.65768611]
[1723685467826,0.502824,58929.0,58928.0,3.38568611]
[1723685472684,0.502824,58929.0,58928.0,3.39568611]
[1723685472887,0.502824,58929.0,58928.0,3.56176064]
[1723685473093,0.502824,58929.0,58928.0,3.57176064]
[1723685473513,0.502824,58929.0,58928.0,3.57176102]
[1723685474883,0.502824,58929.0,58928.0,3.47176102]
[1723685476277,0.502824,58929.0,58928.0,3.45976102]
[1723685476501,0.502824,58929.0,58928.0,2.94979811]
[1723685476739,0.502824,58929.0,58928.0,3.18737611]
[1723685476972,0.502824,58929.0,58928.0,3.25531811]
[1723685477631,0.500824,58929.0,58928.0,2.47731811]
[1723685477836,0.501824,58929.0,58928.0,2.51331811]
[1723685478039,0.501824,58929.0,58928.0,2.52731811]
[1723685479091,0.500824,58929.0,58928.0,2.51431811]
[1723685479706,0.501824,58929.0,58928.0,2.51431811]
[1723685480128,0.501824,58929.0,58928.0,2.52831811]
[1723685480742,0.500824,58929.0,58928.0,2.51431811]
[1723685481221,0.501824,58929.0,58928.0,2.52831811]
[1723685482268,0.577824,58929.0,58928.0,1.41548411]
[1723685482472,0.577824,58929.0,58928.0,0.87717511]
[1723685482473,0.642824,58929.0,58928.0,0.87717511]
[1723685482685,0.76995033,58929.0,58928.0,0.87717511]
[1723685482910,0.65216333,58929.0,58928.0,0.87717511]
[1723685483195,0.65216333,58929.0,58928.0,0.99596411]
[1723685483439,0.65116333,58929.0,58928.0,1.23354211]
[1723685483664,0.65116333,58929.0,58928.0,0.76212011]
[1723685484077,0.65116333,58929.0,58928.0,0.76912011]
[1723685484308,0.65116333,58929.0,58928.0,0.52654211]
[1723685485021,0.65116333,58929.0,58928.0,0.53154211]
[1723685485437,0.65116333,58929.0,58928.0,0.76912011]
[1723685485643,0.57516333,58929.0,58928.0,1.00669811]
[1723685486761,0.566824,58929.0,58928.0,1.00669811]
[1723685487194,0.566824,58929.0,58928.0,1.70669811]
[1723685487974,0.566824,58929.0,58928.0,1.71704684]
[1723685488584,0.566824,58929.0,58928.0,1.70669811]
[1723685489387,0.648324,58929.0,58928.0,1.23154211]
[1723685489629,0.65823464,58929.0,58928.0,1.23133829]
[1723685490056,0.65823464,58929.0,58928.0,0.53133829]
[1723685490692,0.57673464,58929.0,58928.0,1.61529811]
[1723685490902,0.51073464,58929.0,58928.0,1.71529811]
[1723685491454,0.51073464,58929.0,58928.0,1.72562456]
[1723685492446,0.51073464,58929.0,58928.0,2.42562456]
[1723685492851,0.500824,58929.0,58928.0,2.42562456]
[1723685494681,0.500824,58929.0,58928.0,2.21612456]
[1723685494889,0.562824,58929.0,58928.0,1.86912011]
[1723685495086,0.562824,58929.0,58928.0,1.56912011]
[1723685495293,0.57272881,58929.0,58928.0,1.56912011]
[1723685495913,0.57272881,58929.0,58928.0,1.23154211]
[1723685496303,0.57272881,58929.0,58928.0,0.76912011]
[1723685502424,0.57272881,58929.0,58928.0,0.77947891]
[1723685503063,0.57272881,58929.0,58928.0,0.76912011]
[1723685507347,0.57272881,58929.0,58928.0,0.29396411]
[1723685507545,0.65202881,58929.0,58928.0,0.29396411]
[1723685507930,0.65202881,58929.0,58928.0,0.76912011]
[1723685510566,0.65202881,58929.0,58928.0,0.29396411]
[1723685510978,0.65202881,58929.0,58928.0,0.53154211]
[1723685511203,0.65202881,58929.0,58928.0,0.29396411]
[1723685511400,0.65202881,58929.0,58928.0,0.53154211]
[1723685512072,0.65202881,58929.0,58928.0,0.17517511]
[1723685512363,0.65202881,58929.0,58928.0,0.01220382]
[1723685512364,1.24596381,58929.0,58928.0,0.01220382]
[1723685513201,1.24596381,58929.0,58928.0,0.00720382]
[1723685513410,1.25632928,58929.0,58928.0,0.00020382]
[1723685513627,1.25832928,58929.0,58928.0,0.00020382]
[1723685513839,0.356367,58928.0,58927.0,0.00020382]
[1723685514040,0.498067,58928.0,58927.0,0.00020382]
[1723685514251,0.50795213,58928.0,58927.0,0.00020382]
[1723685515285,0.74553013,58928.0,58927.0,0.00020382]
[1723685516044,0.1475,58927.0,58923.0,0.00020382]
[1723685516256,0.00988513,58928.0,58923.0,0.00020382]
[1723685516257,0.674985,58924.0,58923.0,0.00020382]
[1723685516477,0.674985,58924.0,58922.0,0.00020382]
[1723685516478,0.593995,58923.0,58922.0,0.00020382]
[1723685516684,0.081,58924.0,58912.0,0.0009064]
[1723685516685,0.118819,58913.0,58912.0,0.0009064]
[1723685516894,0.260319,58913.0,58912.0,0.00111022]
[1723685517305,0.27014353,58913.0,58912.0,0.00111022]
[1723685517950,0.27014353,58913.0,58912.0,0.00311022]
[1723685518344,0.15132453,58913.0,58912.0,0.00311022]
[1723685518769,0.27014353,58913.0,58912.0,0.00311022]
[1723685519395,0.27014353,58913.0,58912.0,0.00111022]
[1723685519604,0.27114353,58913.0,58912.0,0.00111022]
[1723685519778,0.27014353,58913.0,58912.0,0.00111022]
[1723685520030,0.27514353,58913.0,58912.0,0.00111022]
[1723685520243,0.15632453,58913.0,58912.0,0.00311022]
[1723685521097,0.15632453,58913.0,58912.0,0.00111022]
[1723685521305,0.27614353,58913.0,58912.0,0.00111022]
[1723685521517,0.27114353,58913.0,58912.0,0.00111022]
[1723685521750,0.15232453,58913.0,58912.0,0.00111022]
[1723685522682,0.15432453,58913.0,58912.0,0.00111022]
[1723685525361,0.07322453,58913.0,58912.0,0.28290251]
[1723685525568,0.07322453,58913.0,58912.0,0.75818651]
[1723685525793,0.003824,58913.0,58912.0,0.75818651]
[1723685525996,0.001824,58913.0,58912.0,0.75818651]
[1723685526208,0.000824,58913.0,58912.0,0.75818651]
[1723685526418,0.000824,58913.0,58912.0,0.76018651]
[1723685529506,0.000824,58913.0,58912.0,0.99782851]
[1723685530594,0.000824,58913.0,58912.0,1.08012851]
[1723685531019,0.000824,58913.0,58912.0,1.74077051]
[1723685531253,0.000824,58913.0,58912.0,2.44077051]
[1723685531460,0.000824,58913.0,58912.0,2.20312851]
[1723685532596,0.000824,58913.0,58912.0,2.20112851]
[1723685532802,0.000824,58913.0,58912.0,2.20212851]
[1723685533037,0.001824,58913.0,58912.0,2.20812851]
[1723685533522,0.001824,58913.0,58912.0,2.21812851]
[1723685533769,0.001824,58913.0,58912.0,2.20812851]
[1723685534012,0.001824,58913.0,58912.0,2.21912851]
[1723685534862,0.000824,58913.0,58912.0,2.21212851]
[1723685535121,0.000824,58913.0,58912.0,2.22112851]
[1723685535334,0.000824,58913.0,58912.0,1.60118651]
[1723685535335,0.068124,58913.0,58912.0,1.60118651]
[1723685535543,0.068124,58913.0,58912.0,0.18408151]
[1723685535757,0.144224,58913.0,58912.0,0.18408151]
[1723685535977,0.263043,58913.0,58912.0,0.18408151]
[1723685536183,0.27285534,58913.0,58912.0,0.18408151]
[1723685536389,0.15403634,58913.0,58912.0,0.18408151]
[1723685536567,0.15303634,58913.0,58912.0,0.17508151]
[1723685536807,0.15303634,58913.0,58912.0,0.16708151]
[1723685537227,0.15303634,58913.0,58912.0,0.52854451]
[1723685537736,0.15303634,58913.0,58912.0,0.84908651]
[1723685537737,0.01063634,58913.0,58912.0,0.84908651]
[1723685538164,0.000824,58913.0,58912.0,0.84908651]
[1723685539208,0.000824,58913.0,58912.0,0.52854451]
[1723685540032,0.144324,58913.0,58912.0,0.17208151]
[1723685540466,0.1541019,58913.0,58912.0,0.17208151]
[1723685541001,0.1541019,58913.0,58912.0,0.16708151]